Cogmind - Beta 9.6 @@@ ROGUE MODE // 2020.07.20 @ 18:28:28 Player: Mr.Manatee Result: Destroyed by S-10 Pest with Light Assault Rifle Performance ------------- Evolutions (2) 1000 Regions Visited (3) 600 Robots Destroyed (13) 65 Value Destroyed (254) 254 Prototype IDs (2) 40 Alien Tech Used (0) 0 Bonus (0) 0 TOTAL SCORE: 1959 Bonus ------- None Cogmind --------- Core Integrity 0/550 Matter 260/300 Energy 100/100 System Corruption 0% Temperature Cool (0) Movement Core (50) Location -8/Materials Parts ------- > --- POWER (1) -------- (None) > --- PROPULSION (2) --- (None) > --- UTILITY (6) ------ Transport Network Coupler System Shield > --- WEAPON (2) ------- Heavy Flail > --- INVENTORY (4) ---- Improved Ion Engine Large Storage Unit Advanced EMP Blaster Advanced EMP Blaster Peak State ------------ > --- POWER ------------ (None) > --- PROPULSION ------- (None) > --- UTILITY ---------- Transport Network Coupler > --- WEAPON ----------- Advanced EMP Blaster Heavy Flail > --- INVENTORY -------- Improved Ion Engine Large Storage Unit Beam Rifle EMP Blaster [Rating: 8] Favorites ----------- Power Light Ion Engine Engine Light Ion Engine Propulsion None Utility Transport Network Coupler Processor Transport Network Coupler Hackware System Shield Weapon Heavy Flail Energy Gun Beam Rifle Launcher EMP Blaster Impact Weapon Heavy Flail Build | -11 -10 -9 -8 ------- Run | Scr Mat Mat Mat Slots Evolved 4 | . . 2 2 Power . | . . . . Propulsion . | . . . . Utility 4 | . . 2 2 Weapon . | . . . . Parts Attached 11 | 1 . 4 6 Power 3 | 1 . 2 . Engine 3 | 1 . 2 . Core . | . . . . Reactor . | . . . . Propulsion . | . . . . Treads . | . . . . Leg . | . . . . Wheel . | . . . . Hover . | . . . . Flight . | . . . . Utility 2 | . . . 2 Device . | . . . . Storage . | . . . . Processor 1 | . . . 1 Hackware 1 | . . . 1 Protection . | . . . . Artifact . | . . . . Weapon 6 | . . 2 4 Energy Gun 2 | . . 1 1 Energy Cannon . | . . . . Ballistic Gun . | . . . . Ballistic Cannon . | . . . . Launcher 2 | . . 1 1 Special Weapon . | . . . . Impact Weapon 2 | . . . 2 Slashing Weapon . | . . . . Piercing Weapon . | . . . . Special Melee Weapon . | . . . . Unidentified Prototypes 2 | . . 1 1 Parts Lost 4 | . 1 2 1 Power 3 | . 1 2 . Propulsion . | . . . . Utility . | . . . . Weapon 1 | . . . 1 Highest Loss Streak 1 | . 1 1 1 Average Slot Usage (%) 8 | . 8 3 9 Impact Weapon 7 | . . . 8 Naked Turns 163 | . 12 97 54 Heaviest Build 5 | 3 3 5 3 Greatest Support 3 | 3 3 3 3 Greatest Overweight (x) 1 | . . 1 . Average Overweight (x) . | . . . . Largest Inventory Capacity 4 | 4 4 4 4 Average Capacity 4 | 4 4 4 4 Most Carried 4 | . . 2 4 Average Carried 3 | . . 1 3 Final Capacity 4 | 4 4 4 4 Final Carried 4 | . . 2 4 Class Distribution -------------------- 100% | Mutant Dominant Class ---------------- Mutant | -10/Materials Mutant | -9/Materials Mutant | -8/Materials Resources | -11 -10 -9 -8 ----------- Run | Scr Mat Mat Mat Matter Collected 271 | 210 . 30 31 Remotely . | . . . . Salvage Created 498 | . 29 201 268 Parts 44 | . 6 21 17 Haulers Intercepted 3 | . . 1 2 Recyclers Shooed . | . . . . Parts Field Recycled . | . . . . Retrieved Matter . | . . . . Parts Self-Destructed . | . . . . Prevented . | . . . . Kills | -11 -10 -9 -8 ------- Run | Scr Mat Mat Mat Combat Hostiles Destroyed 9 | . . 6 3 Melee 2 | . . . 2 Guns 1 | . . . 1 AOE 6 | . . 6 . Classes Destroyed 5 | . 1 3 1 Builder 1 | . 1 . . Hauler 3 | . . 1 2 Swarmer 4 | . . 4 . Grunt 2 | . . 2 . Sentry 3 | . . . 3 Best Kill Streak 7 | . 1 7 1 Combat Bots Only 6 | . . 6 1 Max Kills in Single Turn 3 | . 1 3 1 Gunslinging . | . . . . Exploded 3 | . . 3 . Melee 1 | . . . 1 Uniques/NPCs Destroyed . | . . . . Combat | -11 -10 -9 -8 -------- Run | Scr Mat Mat Mat Damage Taken 1241 | . 62 498 681 Core 973 | . 21 399 553 Absorbed by Shields . | . . . . Core Remaining (%) 63 | 100 91 . . Volleys Fired 8 | . . 4 4 Largest 1 | . . 1 1 Hottest 56 | . . 33 56 Shots Fired 8 | . . 4 4 Gun 4 | . . . 4 Cannon . | . . . . Launcher 4 | . . 4 . Special . | . . . . Kinetic . | . . . . Thermal 4 | . . . 4 Explosive . | . . . . Electromagnetic 4 | . . 4 . Robot Hit Streak 5 | . . 4 5 Robot Miss Streak 1 | . . . 1 Penetration Max . | . . . . Secondary Targets . | . . . . Shots Hit Robots 34 | . . 4 30 Core Hits 16 | . 2 8 6 Critical Hits . | . . . . Critical Kills . | . . . . Critical Parts Destroyed . | . . . . Melee Attacks 36 | . . . 36 Impact 36 | . . . 36 Slashing . | . . . . Piercing . | . . . . Sneak Attacks 4 | . . . 4 Combat Hostiles . | . . . . Follow-up Attacks . | . . . . Damage Inflicted 1172 | . 10 242 920 Guns 58 | . . . 58 Cannons . | . . . . Explosions 240 | . . 240 . Melee 862 | . . . 862 Ramming 12 | . 10 2 . Kinetic . | . . . . Thermal 87 | . . 29 58 Explosive . | . . . . Electromagnetic 211 | . . 211 . Impact 862 | . . . 862 Slashing . | . . . . Piercing . | . . . . Highest Corruption 2 | . . 2 . Average Corruption 2 | . . 2 . Corruption Purged . | . . . . Overload Shots . | . . . . Overflow Damage 83 | . . . 83 Projectiles . | . . . . Explosions . | . . . . Melee 83 | . . . 83 Knockbacks . | . . . . Impact . | . . . . Kinetic . | . . . . Secondary . | . . . . Self-Inflicted Damage 5 | . 4 1 . Shots . | . . . . Rammed 3 | . 2 1 . Targets Rammed 3 | . 2 1 . Kicked . | . . . . Crushed . | . . . . Highest Temperature 6 | . . . 6 Average Temperature 4 | . . . 4 Received Heat Transfer 366 | . 24 153 189 Siege Activations . | . . . . Robots Corrupted . | . . . . Combat Hostiles . | . . . . Parts Fried 1 | . . 1 . Impact Corruptions 3 | . . . 3 Robots Melted . | . . . . Combat Hostiles . | . . . . Parts Melted 1 | . . . 1 Heat Transferred 148 | . . . 148 Parts Sabotaged . | . . . . Parts Stolen . | . . . . Parts Stripped . | . . . . Power Chain Reactions 3 | . . 3 . Missiles Intercepted . | . . . . Alert | -11 -10 -9 -8 ------- Run | Scr Mat Mat Mat Peak Influence 233 | . 40 208 233 Average Influence 73 | . 12 149 67 Maximum Alert Level 1 | . . 1 1 Low Security (%) 83 | 100 100 90 82 Level 1 16 | . . 9 17 Level 2 . | . . . . Level 3 . | . . . . Level 4 . | . . . . Level 5 . | . . . . High Security . | . . . . Max Security . | . . . . Squads Dispatched 3 | . . . 3 Investigation 2 | . . . 2 Extermination . | . . . . Reinforcement 1 | . . . 1 Assault . | . . . . Garrison . | . . . . Intercept . | . . . . Construction Impeded . | . . . . Haulers Reinforced . | . . . . Stealth | -11 -10 -9 -8 --------- Run | Scr Mat Mat Mat Distress Signals 1 | . . 1 . Communications Jammed . | . . . . Distress Signals . | . . . . Times Spotted 44 | . 6 18 20 Peak Tracking Total 11 | . 6 11 11 Tactical Retreats 1 | . . 1 . Traps | -11 -10 -9 -8 ------- Run | Scr Mat Mat Mat Traps Triggered . | . . . . Indirectly . | . . . . Trap Hack Attempts . | . . . . Triggered . | . . . . Disarmed . | . . . . Reprogrammed . | . . . . Reused . | . . . . Traps Extracted . | . . . . Installed . | . . . . Triggered . | . . . . Machines | -11 -10 -9 -8 ---------- Run | Scr Mat Mat Mat Machines Disabled . | . . . . Max in Single Turn . | . . . . Machines Sabotaged . | . . . . Garrisons Compromised . | . . . . Overloaded Fab Kills . | . . . . Fab Network Shutdowns . | . . . . Hacking | -11 -10 -9 -8 --------- Run | Scr Mat Mat Mat Machines Accessed 5 | . 1 . 4 Terminals 5 | . 1 . 4 Fabricators . | . . . . Repair Stations . | . . . . Recycling Units . | . . . . Scanalyzers . | . . . . Garrison Access . | . . . . Total Hacks 13 | . 3 . 10 Successful 2 | . . . 2 Failed 11 | . 3 . 8 Catastrophic 2 | . 1 . 1 Database Lockouts . | . . . . Manual 13 | . 3 . 10 Terminals 13 | . 3 . 10 Fabricators . | . . . . Repair Stations . | . . . . Recycling Units . | . . . . Scanalyzers . | . . . . Garrison Access . | . . . . Terminal Hacks 2 | . . . 2 Terminal Index 1 | . . . 1 Recall Investigation 1 | . . . 1 Fabricator Hacks . | . . . . Repair Station Hacks . | . . . . Recycling Unit Hacks . | . . . . Scanalyzer . | . . . . Garrison Access Hacks . | . . . . Unauthorized Hacks . | . . . . Terminals . | . . . . Fabricators . | . . . . Repair Stations . | . . . . Recycling Units . | . . . . Scanalyzers . | . . . . Garrison Access . | . . . . Data Cores Recovered . | . . . . Used . | . . . . Hacking Detections 5 | . 1 . 4 Full Trace Events 2 | . . . 2 Feedback Events . | . . . . Feedback Blocked . | . . . . Robot Schematics Acquired . | . . . . Robots Built . | . . . . Matter . | . . . . Time . | . . . . Total Robot Build Rating . | . . . . Part Schematics Acquired . | . . . . Parts Built . | . . . . Matter . | . . . . Time . | . . . . Total Part Build Rating . | . . . . Parts Repaired . | . . . . Time . | . . . . Parts Recycled . | . . . . Recycled Matter . | . . . . Retrieved Matter . | . . . . Retrieved Components . | . . . . Parts Scanalyzed . | . . . . Part Schematics Acquired . | . . . . Parts Damaged . | . . . . Bothacking | -11 -10 -9 -8 ------------ Run | Scr Mat Mat Mat Used RIF Installer . | . . . . Robots Hacked . | . . . . Non-combat . | . . . . Combat . | . . . . Robot Hacks Applied . | . . . . Relay Couplers Released . | . . . . Robots Rewired . | . . . . Allies Hacked . | . . . . Hacks Repelled . | . . . . Allies | -11 -10 -9 -8 -------- Run | Scr Mat Mat Mat Total Allies . | . . . . Largest Group . | . . . . Highest-Rated Group . | . . . . Highest-Rated Ally . | . . . . Total Orders . | . . . . Ally Attacks . | . . . . Total Damage . | . . . . Kills . | . . . . Allies Corrupted . | . . . . Allies Melted . | . . . . Intel | -11 -10 -9 -8 ------- Run | Scr Mat Mat Mat Robot Analysis Total . | . . . . Derelict Logs Recovered . | . . . . Drone Launches . | . . . . Drone Recoveries . | . . . . Exploration | -11 -10 -9 -8 ------------- Run | Scr Mat Mat Mat Turns Passed 1760 | 15 44 171 1530 Spaces Moved 825 | 27 78 244 476 Core 825 | 27 78 244 476 Treads . | . . . . Legs . | . . . . Wheels . | . . . . Hover . | . . . . Flight . | . . . . Fastest Speed 50 | 50 50 50 50 Average Speed 53 | 50 50 60 50 Slowest Speed 100 | 50 50 100 50 Overloaded Moves . | . . . . Propulsion Burnouts . | . . . . Robots Hopped . | . . . . Cave-ins Triggered . | . . . . Exploration Rate (%) 24 | 3 25 27 42 Regions Visited 3 Branch Regions . Pre-discovered Areas . | . . . . Known Exits Taken . | . . . . Unknown Exits Taken 3 | 1 1 1 . Scrap Searched . | . . . . Spaces Dug 1 | . . . 1 Terrain Destroyed 13 | . . 12 1 Melee 1 | . . . 1 Projectile . | . . . . AOE 12 | . . 12 . Actions | -11 -10 -9 -8 --------- Run | Scr Mat Mat Mat Total 2063 | 27 82 261 1693 Wait 1173 | . 3 7 1163 Move 822 | 26 77 243 476 Hop . | . . . . Pick Up 3 | . . . 3 Fast Attach 11 | 1 . 4 6 Attach . | . . . . Detach 4 | . . 2 2 Swap . | . . . . Drop 3 | . . . 3 Fire 8 | . . 4 4 Melee 36 | . . . 36 Ram 3 | . 2 1 . Kick . | . . . . Crush . | . . . . Escape Stasis . | . . . . Rewire . | . . . . Trap . | . . . . Miscellaneous . | . . . . Route ------- -11/Scrapyard -10/Materials -9/Materials -8/Materials History --------- Turn | Location | Event 7 | -11/Scrapyard | Discovered new exit (range 16) 16 | -11/Scrapyard | Entered Materials 55 | -10/Materials | Discovered new exit (range 11) 60 | -10/Materials | Entered another Materials area 60 | -9/Materials | Evolved 2 slots: Utility x2 164 | -9/Materials | Core integrity fell below 50% 196 | -9/Materials | Core integrity fell below 20% 223 | -9/Materials | Discovered new exit (range 15) 231 | -9/Materials | Entered another Materials area 231 | -8/Materials | Evolved 2 slots: Utility x2 301 | -8/Materials | Build established: Mutant 388 | -8/Materials | Core integrity fell below 50% 1754 | -8/Materials | Core integrity fell below 20% 1761 | -8/Materials | Destroyed by S-10 Pest with Light Assault Rifle Last Messages --------------- 01670_ A-02 Transporter system corrupted by crushing effect. 01671_ A-02 Transporter system terminally corrupted. 01674_ Acquired Prototype Launcher. 01674_ Identified Adv. EMP Blaster. 01675_ Dropped EMP Blaster. 01676_ Dropped Beam Rifle. 01677_ Acquired Adv. EMP Blaster. 01688_ Sneak attack on W-25 Informer. 01688_ Destroyed Imp. Hover Unit. 01688_ W-25 Informer system corrupted by crushing effect. 01689_ O-16 Technician: "IFF HANDSHAKE FAILED. SECURING TERMINAL." 01690_ O-16 Technician uses terminal to summon reinforcements. 01690_ ALERT: Hostiles spotted, dispatching reinforcements to Terminal M012. 01690_ O-16 Technician locks terminal. 01705_ Sneak attack on A-02 Transporter. 01730_ K-01 Serf cleans the Hadron Collector. 01732_ Acquired System Shield. 01735_ K-01 Serf cleans the Hadron Collector. [Achievement: Tester] Map ----- +----------------------------------------------------+ | ???????????????????????????????????????# """ # | | ???????????????????????????????????????# """ # | | ???????????????????????????????????????# | | ???????????????????????????????????????# | | ???????????????????????????????????????# | | ???????????????????????????????????????# ###+### | | ???????????????????????????????????????# ## ? | | ???????????????????????????????????????# ## | | ???????????????????????????#####+####### ## | | ??????????????a??????????? ## | | ?????????????????????????? ## | | ?????????????????????????? ## | | ???????????????????????????##############/######## | | ??????????????????????????????????# ^ #????? | | ??????????????????????????????????# #????? | | ??????????????????????????????????# """ #????? | | ??????????????????????????????????#[=! """ #????? | | ??????????????????????????????????#==! """ #????? | | ??????????????????????????????????#== """ #????? | | ??????????????????????????????????# #????? | | ??????????????????????????????????# = #????? | | ??????????????????????????????????#####+#####????? | | ???????????????????????############## ######## | | ???????????????????????# s ! # | | ???????????????????????# gg + | | ???????????????????????#s@" """"" # """ | | ???????????????????? T /s""""""""" [# "T" | | ??????????????????# # """ """ ## | | ??????????????????## ################ """" | | ???????????????????# ???????# [ # """" a | | ???????????????????# ????????# + """" | | ???????????????????#?????????# # | | ?????????????????????????????######### | | ?????????????????????????????????????# """" """" | | ????????????????????????????????????? """" """" | | ????????????????????????????????????? """" ""?? | | ????????????????????????????????????# ?? | | ????????????????????????????????????# ??? ?? | | ????????????????????????????????????# ?????? | | ????????????????????????????????????########?????? | | ?????????????????????????????????????????????????? | | ?????????????????????????????????????????????????? | | ?????????????????????????????????????????????????? | | ?????????????????????????????????????????????????? | | ?????????????????????????????????????????????????? | | ?????????????????????????????????????????????????? | | ?????????????????????????????????????????????????? | | ?????????????????????????????????????????????????? | | ?????????????????????????????????????????????????? | | ?????????????????????????????????????????????????? | +----------------------------------------------------+ Best States ------------- Heat Dissipation 31 Energy Generation 10 Energy Capacity 250 Matter Stores 300 Matter Capacity 300 Sight Range 16 Terrain Scan Density 10 Evasion (%) 50 Defensive Hacking 10 Item Schematics ----------------- None Robot Schematics ------------------ None Fabricated ------------ Nothing Alien Tech Used ----------------- None Achievements -------------- Tester Challenges ------------ None Game ------ Seed TractorTransportManipulator Manual? 0 Play Time 00:11:31 Cumulative 52.9 hours Start 2020.07.20 @ 18:13:53 End 2020.07.20 @ 18:28:28 Sessions 1 Manual Loads 0 Difficulty Rogue Special Mode None Game No. 71 Rogue 71 Adventurer 0 Explorer 0 Win Type - Total 0 Types 0/0/0/0/0/0/0 Lore% 39 Gallery% 50 Achievement% 40 Wizard Run 0 Options --------- ASCII 0 Keyboard 1 Movement Numpad Keybinds 0 Fullscreen 2 Font 18/SmallcapsGlow Map View 76x50 Tactical HUD 1 Map Filters NONE Filters NONE Steam 1 RUN: f337f17a-6afd-49e0-b9ad-26fa615635c7